[Event "44th Chess Olympiad Women 2022"]
[Site "Chennai"]
[Date "2022.07.29"]
[Round "1.30"]
[White "Taqwa, Hamouri"]
[Black "Narva, Triin"]
[Result "0-1"]
[ECO "B01"]
[WhiteElo "1214"]
[BlackElo "2066"]
[Annotator "TA"]
[PlyCount "58"]
[EventDate "2022.07.29"]
[EventType "team-tourn"]
[EventCountry "IND"]
[SourceTitle "playchess.com"]
[Source "ChessBase"]
[SourceQuality "1"]
[WhiteTeam "Palestine"]
[BlackTeam "Estonia"]
[WhiteTeamCountry "PLE"]
[BlackTeamCountry "EST"]
[TimeControl "40/5400+30:1800+30"]

{[%evp 9,58,52,58,43,38,35,78,52,66,64,73,42,60,0,7,0,0,5,14,0,14,3,58,15,145,0,0,-10,-6,-11,-3,-11,-12,-83,-73,-163,-162,-158,-115,-241,-243,-195,-62,-50,-63,-273,-263,-317,-308,-1315,-1254]} 1. e4 {[%emt 0:00:04]} d5 {[%emt 0:00:10]} 2. exd5 {[%emt 0:00:35]} Qxd5 {[%emt 0:00:05]} 3. Nc3 {[%emt 0:00:22]} Qd6 {[%emt 0:00:06]} 4. d4 {[%emt 0:00:57]} Nf6 {[%emt 0:00:12]} 5. Nf3 {[%emt 0:00:46]} Nc6 {[%emt 0:01:58]} 6. h3 {[%emt 0:07:19] Against Bg4. B01: Scandinavian Defence.} Bf5 {[%emt 0:04:35]} 7. Bd3 {[%emt 0:05:43]} Bg6 {[%emt 0:14:23]} 8. Be3 {[%emt 0:17:53] White is better.} e6 {[%emt 0:05:03] [#]} 9. Bxg6 $146 {[%emt 0:03:53]} ({Predecessor:} 9. Qd2 O-O-O 10. O-O-O Nd5 11. Bxg6 hxg6 12. Nxd5 Qxd5 13. Kb1 Be7 14. a3 Qb5 15. Qd3 {0-1 (57) Akbari,D (1191)-Looni,A (1647) Chess.com INT 2021}) 9... hxg6 {[%emt 0:02:43]} 10. a3 {[%emt 0:03:25]} O-O-O {[%emt 0:04:05]} 11. Nb5 {[%emt 0:04:59]} (11. Qe2 $14) 11... Qd5 $11 {[%emt 0:23:16]} 12. Qd3 {[%emt 0:09:23]} a6 {[%emt 0:09:27]} 13. Nc3 {[%emt 0:06:55][%cal Bb5c3,Bc3e2,Be2g3][%mdl 32]} Qa5 {[%emt 0:00:00]} 14. O-O {[%emt 0:12:16]} Qh5 {[%emt 0:05:35][%cal Og6g5]} 15. Ne2 {[%emt 0:04:43]} Bd6 {[%emt 0:05:59]} (15... Qf5 $11) 16. c4 {[%emt 0:02:13]} Ng4 {[%emt 0:13:32] [#]} 17. c5 {[%emt 0:02:47]} ({Better is} 17. b4 $1 $16) 17... Nxe3 {[%emt 0:02:06]} 18. Qxe3 {[%emt 0:01:41]} Be7 {[%emt 0:00:12]} 19. b4 {[%emt 0:03:12]} g5 {[%emt 0:00:49]} 20. Ng3 {[%emt 0:01:10]} Qg6 {[%emt 0:00:36]} 21. Rfe1 {[%emt 0:01:44]} (21. Ne5 $11 Nxe5 22. dxe5) 21... Bf6 $17 {[%emt 0:02:27] And now ...g4 would win.} 22. Ne5 {[%emt 0:02:41]} (22. Rad1 $17) 22... Bxe5 $19 {[%emt 0:00:32]} 23. dxe5 {[%emt 0:00:16]} Nd4 {[%emt 0:00:36] White must now prevent ...Nc2.} 24. Qc3 {[%emt 0:01:52]} (24. Rac1 $17 {was called for.}) 24... Nc2 {[%emt 0:03:13]} 25. c6 {[%emt 0:01:10] [#]} Qd3 {[%emt 0:00:46]} ({Inferior is} 25... Nxa1 26. cxb7+ Kb8 27. Ne4 $11) ({Black should play} 25... b6 $1 $19 26. Qc4 b5) 26. cxb7+ {[%emt 0:01:59]} Kxb7 {[%emt 0:00:10]} 27. Qc5 {[%emt 0:01:03]} Nxa1 {[%emt 0:00:23] Active counter play!} ({And not} 27... Nxe1 28. Rxe1 Rd5 29. Ne4 $17) 28. Rxa1 {[%emt 0:00:50]} Qd4 {[%emt 0:00:27]} 29. Qc2 $2 {[%emt 0:00:32]} (29. Rc1 Qxc5 30. Rxc5) 29... Qxa1+ {[%emt 0:00:06] Weighted Error Value: White=0.81/Black=0.28 (precise)} 0-1

[Event "44th Chess Olympiad Women 2022"]
[Site "Chennai"]
[Date "2022.07.29"]
[Round "1.31"]
[White "Caballero Quijano, Mitzy Mishell"]
[Black "Wilson, Hannah"]
[Result "1-0"]
[ECO "D05"]
[WhiteElo "2035"]
[BlackElo "1556"]
[Annotator "TA"]
[PlyCount "57"]
[EventDate "2022.07.29"]
[EventType "team-tourn"]
[EventCountry "IND"]
[SourceTitle "playchess.com"]
[Source "ChessBase"]
[SourceQuality "1"]
[WhiteTeam "Peru"]
[BlackTeam "Barbados"]
[WhiteTeamCountry "PER"]
[BlackTeamCountry "BAR"]
[TimeControl "40/5400+30:1800+30"]

{[%evp 16,56,18,14,46,37,37,30,69,41,60,60,79,60,64,76,134,113,188,188,189,176,503,323,653,254,277,244,1087,242,29988,1441,29981,29982,29984,29985,29985,29986,29986,29987,29998,29999,29999]} 1. d4 {[%emt 0:00:03]} Nf6 {[%emt 0:00:13]} 2. Nf3 {[%emt 0:00:08]} e6 {[%emt 0:00:20]} 3. e3 {[%emt 0:00:04]} d5 {[%emt 0:01:14]} 4. Bd3 {[%emt 0:00:07]} c5 {[%emt 0:00:45]} 5. b3 {[%emt 0:00:04]} Nc6 {[%emt 0:01:07]} 6. Nbd2 {[%emt 0:00:19]} cxd4 {[%emt 0:03:08]} 7. exd4 {[%emt 0:00:04]} Bd6 {[%emt 0:01:21]} 8. Bb2 {[%emt 0:00:13]} O-O {[%emt 0:01:29]} 9. O-O {[%emt 0:00:10]} Bd7 {[%emt 0:11:47] D05: Colle System with ...e6.} 10. a3 {[%emt 0:00:09]} a5 {[%emt 0:05:07]} 11. Ne5 {[%emt 0:00:16] [#]} Qc7 $146 {[%emt 0:04:40][%cal Rc6e5] White has an edge.} ({Predecessor:} 11... Rc8 12. f4 Qb6 13. Ndf3 a4 14. b4 Ne4 15. Nxd7 Qc7 16. Nxf8 {1-0 (16) Kettl,H (1557)-Halfmeier,H (1663) GER email 2012}) 12. f4 {[%emt 0:00:14]} Rfb8 {[%emt 0:03:08]} 13. Qf3 {[%emt 0:00:43]} b5 {[%emt 0:05:46]} 14. Qh3 {[%emt 0:01:19]} b4 {[%emt 0:20:10]} 15. a4 {[%emt 0:00:05]} Qa7 {[%emt 0:07:30]} (15... Ne7 $142) 16. Ndf3 {[%emt 0:00:28] 0x0.0020ae5f0de4dp-1022s more active pieces.} h6 {[%emt 0:10:50] Inhibits Ng5.} (16... Bxe5 $16 17. fxe5 (17. Nxe5 Ne7 $14) 17... Ne4) 17. g4 $1 $18 {[%emt 0:02:58] Black must now prevent g5.} Ne4 {[%emt 0:02:33]} 18. g5 {[%emt 0:01:09]} Nxg5 {[%emt 0:11:32]} (18... Nxe5 {is more resistant.} 19. fxe5 Be7) 19. fxg5 {[%emt 0:01:45]} Bxe5 {[%emt 0:03:01]} (19... Nxe5 20. Nxe5 Bxe5) 20. Nxe5 $2 {[%emt 0:00:09]} (20. gxh6 f5 21. Kh1 (21. Nxe5 Nxe5 22. Qg3 Ng4 $18)) 20... Nxe5 {[%emt 0:00:17]} 21. gxh6 {[%emt 0:00:04] Threatens to win with Qg3.} Nxd3 $2 {[%emt 0:04:07] [#]} (21... f5 22. Qg3 Ng4) 22. cxd3 $2 $40 {[%emt 0:00:29][%mdl 128] White wants a kill.} (22. Qg3 $1 {[%csl Gh6][%cal Rg3g7]} g6 {[#]} (22... Kf8 23. h7) 23. Qg5 $1) 22... gxh6 {[%emt 0:00:40]} (22... f5 $18 23. Kh1 (23. hxg7 Kxg7 24. Qh4 Be8 $18) 23... g6) 23. Rf6 {[%emt 0:00:50]} (23. Qxh6 $142 Rb6 24. Kh1 e5 25. Rg1+ Bg4 26. Rxg4+ Rg6 27. Rag1 Qa6 28. Rxg6+ fxg6 29. Rxg6+ Qxg6 30. Qxg6+ Kf8 31. dxe5) 23... Kf8 {[%emt 0:00:33]} 24. Raf1 {[%emt 0:00:32] White mates.} Ke7 {[%emt 0:00:36]} 25. Rxf7+ {[%emt 0:00:07]} Kd6 {[%emt 0:00:23]} 26. Qg3+ {[%emt 0:00:15]} Kc6 {[%emt 0:00:27]} 27. Rc1+ {[%emt 0:00:10]} Kb6 {[%emt 0:00:16]} 28. Qd6+ {[%emt 0:01:09]} Kb7 {[%emt 0:00:16]} 29. Rxd7# {[%emt 0:01:04] Weighted Error Value: White=0.82/Black=1.16} 1-0

[Event "44th Chess Olympiad Women 2022"]
[Site "Chennai"]
[Date "2022.07.29"]
[Round "1.31"]
[White "Bravo Mallco, Kate Azumi"]
[Black "Eversley, Kiarra"]
[Result "1-0"]
[ECO "B62"]
[WhiteElo "1958"]
[BlackElo "1356"]
[Annotator "TA"]
[PlyCount "49"]
[EventDate "2022.07.29"]
[EventType "team-tourn"]
[EventCountry "IND"]
[SourceTitle "playchess.com"]
[Source "ChessBase"]
[SourceQuality "1"]
[WhiteTeam "Peru"]
[BlackTeam "Barbados"]
[WhiteTeamCountry "PER"]
[BlackTeamCountry "BAR"]
[TimeControl "40/5400+30:1800+30"]

{[%evp 12,49,35,14,17,0,85,93,98,95,100,89,104,95,262,281,217,159,254,243,265,277,295,276,299,169,264,266,333,271,525,528,965,943,1655,1625,29989,29990,29990,29991]} 1. e4 {[%emt 0:00:04]} c5 {[%emt 0:00:14]} 2. Nf3 {[%emt 0:00:09]} d6 {[%emt 0:00:10]} 3. d4 {[%emt 0:00:06]} cxd4 {[%emt 0:00:24]} 4. Nxd4 {[%emt 0:00:03]} Nc6 {[%emt 0:00:43]} 5. Nc3 {[%emt 0:03:09]} Nf6 {[%emt 0:00:34]} 6. Bg5 {[%emt 0:02:09]} e6 {[%emt 0:00:28]} 7. Qd3 {[%emt 0:01:55]} Be7 {[%emt 0:01:43] 7...Bd7 is a critical line. B62: Sicilian: Richter-Rauzer: 6...e6: Unusual White 7th moves.} 8. O-O-O {[%emt 0:00:54] [#]} Qa5 $146 {[%emt 0:03:45]} (8... O-O $11 {remains equal.}) ({Predecessor:} 8... O-O 9. Kb1 Bd7 10. Nb3 a5 11. a3 a4 12. Nd4 Qa5 13. Bd2 Qb6 14. Be3 Nxd4 15. Bxd4 Qa5 16. Be2 Rfc8 {1-0 (59) Caruana,F (2806)-Shankland,S (2709) Saint Louis 2021}) 9. Bxf6 $16 {[%emt 0:03:41]} gxf6 {[%emt 0:04:50] White is better.} 10. Ndb5 {[%emt 0:06:16]} O-O {[%emt 0:03:48]} 11. Qg3+ {[%emt 0:07:44]} ({Don't play} 11. Nxd6 Rd8 12. Qg3+ Qg5+ 13. Qxg5+ fxg5 14. Nxc8 Raxc8 $14) 11... Kh8 {[%emt 0:00:09]} 12. Nxd6 {[%emt 0:00:30] 0x0.0020ae3b8030dp-1022s more active pieces. The black rooks are badly placed.} Nb4 $2 {[%emt 0:10:31] [#]} (12... Qc5 $16) 13. a3 $18 {[%emt 0:01:40]} Nc6 {[%emt 0:01:22]} 14. h4 {[%emt 0:08:56][%cal Bh2h4,Bh4h5][%mdl 32]} Ne5 {[%emt 0:02:45]} (14... Qc5 $16 15. b4 Bxd6 16. Rxd6 (16. bxc5 Bxg3 17. fxg3 Ne5 $11) 16... Qe5 17. Qxe5 fxe5) 15. f4 $40 {[%emt 0:00:51][%mdl 128] White is out for blood.} Rg8 {[%emt 0:00:25]} 16. Qe1 {[%emt 0:14:07]} Bxd6 {[%emt 0:01:39]} 17. Rxd6 {[%emt 0:00:05]} Ng4 {[%emt 0:00:33]} 18. Rd2 {[%emt 0:04:45]} (18. Qd2 $142) 18... Qc5 {[%emt 0:11:36]} (18... Qc7 $142 19. g3 Bd7) 19. h5 {[%emt 0:04:12] Strongly threatening Qh4.} b6 {[%emt 0:03:20]} 20. Be2 {[%emt 0:07:52] [#] Threatens to win with Qh4.} Bb7 $2 {[%emt 0:07:09]} (20... Qf2 21. Qxf2 Nxf2) 21. Qh4 {[%emt 0:04:03]} ({Less strong is} 21. Rd7 Bc6 $16) 21... f5 {[%emt 0:00:22]} 22. Bxg4 {[%emt 0:01:19] White wants to mate with Qf6+.} Rxg4 {[%emt 0:00:52]} 23. Rd8+ {[%emt 0:08:11]} Rxd8 {[%emt 0:00:15]} 24. Qxd8+ {[%emt 0:00:02]} Kg7 {[%emt 0:02:00]} 25. h6+ {[%emt 0:00:03] Black got outplayed after the opening.  Weighted Error Value: White=0.14 (very precise) /Black=0.92} 1-0

[Event "44th Chess Olympiad Women 2022"]
[Site "Chennai"]
[Date "2022.07.29"]
[Round "1.31"]
[White "Blackman, Katrina"]
[Black "Chumpitaz, Ann"]
[Result "0-1"]
[ECO "D02"]
[WhiteElo "1691"]
[BlackElo "2278"]
[Annotator "TA"]
[PlyCount "68"]
[EventDate "2022.07.29"]
[EventType "team-tourn"]
[EventCountry "IND"]
[SourceTitle "playchess.com"]
[Source "ChessBase"]
[SourceQuality "1"]
[WhiteTeam "Barbados"]
[BlackTeam "Peru"]
[WhiteTeamCountry "BAR"]
[BlackTeamCountry "PER"]
[TimeControl "40/5400+30:1800+30"]

{[%evp 14,68,8,2,16,-3,15,-20,-10,-4,1,8,6,0,20,-22,0,-11,-13,0,222,230,216,203,240,185,187,152,232,196,182,105,100,97,110,89,156,137,192,96,173,-172,-153,-323,-315,-343,-333,-486,-444,-561,-390,-1438,151,-1159,-1111,-1052,1200]} 1. d4 {[%emt 0:00:04]} Nf6 {[%emt 0:00:08]} 2. Nf3 {[%emt 0:00:03]} g6 {[%emt 0:00:18]} 3. Bf4 {[%emt 0:00:03]} d5 {[%emt 0:00:03]} 4. e3 {[%emt 0:00:11]} Bg7 {[%emt 0:00:03]} 5. Be2 {[%emt 0:00:09]} c5 {[%emt 0:00:04]} 6. c3 {[%emt 0:00:20]} Nc6 {[%emt 0:00:04]} 7. h3 {[%emt 0:01:29]} O-O {[%emt 0:00:06]} 8. O-O {[%emt 0:00:03]} Nd7 {[%emt 0:00:02] D02: 1 d4 d5 2 Nf3 sidelines, including 2...Nf6 3 g3 and 2...Nf6 3 Bf4.} 9. Bh2 {[%emt 0:02:27] [#]} Re8 $146 {[%emt 0:00:13]} ({Predecessor:} 9... e5 10. dxe5 Ndxe5 11. Na3 Be6 12. Qd2 Qd7 13. Rad1 Rad8 14. Qc1 Nxf3+ 15. Bxf3 Ne5 16. Bxd5 Bxd5 {½-½ (29) Guimaraes,W (2218)-Sarkar,J (2380) Chess.com INT 2020}) 10. Qc2 {[%emt 0:08:05]} e5 {[%emt 0:17:41][%cal Be7e5,Be5e4][%mdl 32] The position is equal.} 11. Rd1 {[%emt 0:01:39]} e4 {[%emt 0:14:02]} 12. Nfd2 {[%emt 0:01:03]} Qg5 {[%emt 0:02:07]} 13. Bf4 {[%emt 0:04:36]} Qe7 {[%emt 0:00:22]} 14. a3 {[%emt 0:06:39]} cxd4 {[%emt 0:08:38]} 15. cxd4 {[%emt 0:00:22] [#]} Bxd4 $1 {[%emt 0:00:07]} 16. Nc3 {[%emt 0:09:28]} ({Don't go for} 16. exd4 $2 Nxd4 17. Qc7 Nxe2+ 18. Kf1 Nxf4 19. Qxf4 Nc5 $19) 16... Nb6 {[%emt 0:03:22]} 17. exd4 $18 {[%emt 0:03:29]} Nxd4 {[%emt 0:00:04]} 18. Qc1 {[%emt 0:00:02]} Be6 {[%emt 0:02:33]} 19. Re1 {[%emt 0:05:29]} Rac8 {[%emt 0:10:01]} 20. Qd1 {[%emt 0:06:22] Inhibits Na4.} Nf5 {[%emt 0:07:23]} (20... Red8 $16 21. Rc1 f5) 21. Bg4 {[%emt 0:07:20]} Ng7 {[%emt 0:00:10]} 22. Bxe6 {[%emt 0:05:36]} (22. Nb3 $18) 22... Nxe6 $16 {[%emt 0:01:27]} 23. Bg3 {[%emt 0:00:40]} f5 {[%emt 0:00:45][%cal Bf7f5,Bf5f4][%mdl 32]} 24. Nb3 {[%emt 0:00:29]} Rcd8 {[%emt 0:13:04]} ({Black should play} 24... Red8) 25. Nd4 {[%emt 0:07:18]} Nc5 {[%emt 0:00:09]} (25... f4 $16 {is a better defense.}) 26. Re2 {[%emt 0:10:58]} (26. b4 $1 $18 {[%cal Rb4c5]} Ne6 27. Ncb5) 26... Qg7 {[%emt 0:00:39]} (26... Qf7 $16) 27. b3 $4 {[%emt 0:01:29][%mdl 8192]} (27. Ncb5 $18 {and all is fine.}) 27... Nd3 $1 $19 {[%emt 0:02:41]} 28. Ndb5 {[%emt 0:03:27]} (28. Bh4 $17 {was worth a try.} Qxd4 29. Bxd8 Rxd8 30. Na4) 28... f4 $1 {[%emt 0:00:09]} 29. Bh2 {[%emt 0:05:55]} a6 {[%emt 0:00:19]} 30. Rc2 {[%emt 0:03:15]} (30. Qf1 $142) 30... axb5 {[%emt 0:01:04]} 31. Nxb5 {[%emt 0:00:26]} Rc8 {[%emt 0:00:37] Hoping for ...Rxc2.} 32. Nd6 $2 {[%emt 0:01:11]} (32. Rb1) 32... Rc6 $2 {[%emt 0:00:15]} 33. Rc3 $2 (33. Nxe8 $16 Qe5 34. Rxc6 bxc6 {[#]} 35. a4 $1) 33... Rxc3 {[%emt 0:00:31]} 34. Nxe8 {[%emt 0:00:33]} Rc2 $4 {[%emt 0:00:14][%mdl 40960] Weighted Error Value: White=1.12/Black=0.52. Loss on time!?} 0-1

[Event "44th Chess Olympiad Women 2022"]
[Site "Chennai"]
[Date "2022.07.29"]
[Round "1.31"]
[White "Moore, Gaybrianna"]
[Black "Paredes Bustamante, Paula Elizab"]
[Result "0-1"]
[ECO "D02"]
[WhiteElo "1335"]
[BlackElo "2162"]
[Annotator "TA"]
[PlyCount "70"]
[EventDate "2022.07.29"]
[EventType "team-tourn"]
[EventCountry "IND"]
[SourceTitle "playchess.com"]
[Source "ChessBase"]
[SourceQuality "1"]
[WhiteTeam "Barbados"]
[BlackTeam "Peru"]
[WhiteTeamCountry "BAR"]
[BlackTeamCountry "PER"]
[TimeControl "40/5400+30:1800+30"]

{[%evp 17,70,8,36,37,38,47,36,51,46,37,28,39,36,-200,-206,-202,-210,-205,-206,-210,-200,-204,-200,-202,-204,-206,-210,-202,-201,-288,-281,-510,-497,-566,-574,-542,-542,-604,-609,-576,-512,-535,-552,-717,-710,-783,-738,-1618,-1663,-1511,-1366,-1636,-1606,-29992,-29993]} 1. d4 {[%emt 0:00:08]} d5 {[%emt 0:00:01]} 2. Bf4 {[%emt 0:00:16]} Nf6 {[%emt 0:00:02]} 3. e3 {[%emt 0:00:13]} c5 {[%emt 0:00:02]} 4. Nf3 {[%emt 0:01:07]} Nc6 {[%emt 0:00:02]} 5. c3 {[%emt 0:00:44]} e6 {[%emt 0:00:03]} 6. Bd3 {[%emt 0:00:31]} Bd6 {[%emt 0:00:03]} 7. Bg3 {[%emt 0:00:41]} O-O {[%emt 0:00:10]} 8. Nbd2 {[%emt 0:00:43]} Qe7 {[%emt 0:01:23]} 9. Ne5 {[%emt 0:00:30]} Bxe5 {[%emt 0:03:33]} 10. dxe5 {[%emt 0:00:43] D02: 1 d4 d5 2 Nf3 sidelines, including 2...Nf6 3 g3 and 2...Nf6 3 Bf4.} Nd7 {[%emt 0:00:02]} 11. Nf3 {[%emt 0:03:18]} ({Much worse is} 11. Qh5 g6 12. Qe2 Ndxe5 $17) 11... f5 {[%emt 0:07:18]} 12. exf6 {[%emt 0:02:52] White is slightly better.} Nxf6 {[%emt 0:00:03]} 13. Ne5 {[%emt 0:03:25]} Nxe5 {[%emt 0:01:17]} 14. Bxe5 {[%emt 0:00:40]} Nd7 {[%emt 0:00:40] [#]} 15. Qh5 $146 {[%emt 0:01:52]} (15. Bg3 $14) ({Predecessor:} 15. Bg3 Nf6 16. O-O Bd7 17. c4 Bc6 18. Qc2 Rad8 19. b3 e5 20. cxd5 Bxd5 21. Bc4 {½-½ (40) Chigaev,M (2542)-Vignesh,N (2432) Voronezh 2016}) 15... g6 $19 {[%emt 0:02:23]} 16. Bxg6 {[%emt 0:00:34]} Nxe5 {[%emt 0:00:02]} 17. Bxh7+ {[%emt 0:03:59]} Qxh7 {[%emt 0:00:02]} 18. Qxe5 {[%emt 0:00:20]} Qf5 {[%emt 0:04:59]} 19. Qg3+ {[%emt 0:00:34]} Kh8 {[%emt 0:00:03]} 20. Qh4+ {[%emt 0:01:29]} Qh7 {[%emt 0:01:28]} 21. Qg5 {[%emt 0:00:55]} Bd7 {[%emt 0:01:06] [#] White must now prevent ...Rf5.} 22. Qe5+ {[%emt 0:02:37]} Qg7 {[%emt 0:00:08]} 23. Qh5+ {[%emt 0:01:58]} (23. Qxg7+ $142 Kxg7 24. Rd1) 23... Kg8 {[%emt 0:00:04]} 24. O-O-O $2 {[%emt 0:16:04]} (24. f4 {was necessary.}) 24... Rxf2 {[%emt 0:00:42]} 25. Rdf1 {[%emt 0:02:38]} Raf8 {[%emt 0:00:06]} 26. Rxf2 {[%emt 0:01:34]} Rxf2 {[%emt 0:00:03]} 27. g3 {[%emt 0:01:24]} Bb5 {[%emt 0:03:42]} 28. Re1 {[%emt 0:06:42]} Rf5 {[%emt 0:03:49]} 29. Qh4 {[%emt 0:00:00]} Bd3 {[%emt 0:00:29] Inhibits e4. ...Rf2 is the strong threat.} 30. Qd8+ {[%emt 0:00:00]} Rf8 {[%emt 0:00:02]} 31. Qd6 {[%emt 0:01:37]} Qg6 {[%emt 0:00:22]} 32. Qxc5 {[%emt 0:01:58]} Rf2 {[%emt 0:00:03]} 33. Qc8+ {[%emt 0:00:49]} Kh7 {[%emt 0:00:03]} 34. Qd7+ {[%emt 0:07:04]} Kh6 {[%emt 0:00:03] ( -> ...Rc2+)} 35. h3 {[%emt 0:01:29] [#]} Bb5 $1 {[%emt 0:00:16][%mdl 512] White did not feel at home in the position after the opening.  Weighted Error Value: White=0.65/Black=0.06 (flawless)} 0-1

[Event "44th Chess Olympiad Women 2022"]
[Site "Chennai"]
[Date "2022.07.29"]
[Round "1.32"]
[White "Garcia, Andrea Nicole"]
[Black "Aulia, Medina Warda"]
[Result "0-1"]
[ECO "C70"]
[WhiteElo "1631"]
[BlackElo "2374"]
[Annotator "TA"]
[PlyCount "60"]
[EventDate "2022.07.29"]
[EventType "team-tourn"]
[EventCountry "IND"]
[SourceTitle "playchess.com"]
[Source "ChessBase"]
[SourceQuality "1"]
[WhiteTeam "Honduras"]
[BlackTeam "Indonesia"]
[WhiteTeamCountry "HON"]
[BlackTeamCountry "INA"]
[TimeControl "40/5400+30:1800+30"]

{[%evp 9,60,32,38,33,39,11,18,10,10,6,20,7,0,0,10,0,2,0,0,-24,-27,-68,-39,-37,-35,-56,-46,-100,-85,-85,-65,-164,-68,-58,-67,-61,-49,-47,-26,-32,-29,-309,-295,-506,-473,-505,-483,-479,-440,-703,-660,-649,-682]} 1. e4 {[%emt 0:00:06]} e5 {[%emt 0:00:08]} 2. Nf3 {[%emt 0:00:10]} Nc6 {[%emt 0:00:10]} 3. Bb5 {[%emt 0:00:13]} g6 {[%emt 0:00:23]} 4. c3 {[%emt 0:02:13]} a6 {[%emt 0:00:40]} 5. Ba4 {[%emt 0:00:07]} Bg7 {[%emt 0:00:49]} 6. O-O {[%emt 0:01:43] C70: Ruy Lopez: 3...a6 4 Ba4, Norwegian and Delayed Schliemann.} Nge7 {[%emt 0:00:57]} 7. d3 {[%emt 0:04:47]} O-O {[%emt 0:02:00]} 8. Re1 {[%emt 0:05:19] The position is equal.} b5 {[%emt 0:05:05]} 9. Bb3 {[%emt 0:00:18]} d6 {[%emt 0:03:36]} 10. Nbd2 {[%emt 0:06:17]} Na5 {[%emt 0:15:40]} 11. Bc2 {[%emt 0:00:14]} c5 {[%emt 0:00:52]} 12. Nf1 {[%emt 0:08:46]} Nac6 {[%emt 0:04:50] [#]} 13. Be3 $146 {[%emt 0:05:22]} ({Predecessor:} 13. Ng3 f5 14. Bb3+ Kh8 15. Ng5 Qe8 16. exf5 Nxf5 17. Nxf5 Bxf5 18. a4 Rc8 19. axb5 axb5 {1-0 (74) Kantor,J (1880)-Mackova,V (1902) Klatovy 2016}) 13... h6 {[%emt 0:05:14]} 14. h3 {[%emt 0:11:08]} f5 {[%emt 0:04:12][%cal Bf7f5,Bf5f4][%mdl 32]} 15. N3h2 {[%emt 0:17:08]} f4 {[%emt 0:00:57]} 16. Bc1 {[%emt 0:01:49]} Kh8 {[%emt 0:04:53]} 17. Qf3 {[%emt 0:16:26]} Bd7 {[%emt 0:05:15]} 18. g4 {[%emt 0:02:55]} (18. a3 $15) 18... Ng8 {[%emt 0:02:31]} 19. Qg2 {[%emt 0:01:15]} Nf6 {[%emt 0:02:04] Black is more active.} 20. g5 {[%emt 0:03:10]} ({White should try} 20. Nf3 $15) 20... Nh7 {[%emt 0:02:13]} (20... hxg5 $19 {White must now prevent ...Qc8.} 21. Qxg5 Qc8) 21. gxh6 $15 {[%emt 0:01:02]} Bxh6 {[%emt 0:00:05]} 22. Bd1 $1 {[%emt 0:01:55]} b4 {[%emt 0:07:17]} 23. Bg4 {[%emt 0:03:18]} Ra7 {[%emt 0:04:21][%cal Ba8a7,Ba7d7,Bd7h7][%mdl 32]} 24. Bxd7 {[%emt 0:00:42]} Rxd7 {[%emt 0:00:06]} 25. Ng4 $2 {[%emt 0:01:44][%mdl 8192] Now White is beyond hope.} (25. Nd2 $11) 25... f3 $19 {[%emt 0:02:55]} 26. Qg3 {[%emt 0:00:22] [#]} (26. Qh2 Bxc1 27. Raxc1) 26... Bf4 $1 {[%emt 0:00:11] Black is clearly winning.} 27. Bxf4 {[%emt 0:00:18]} exf4 {[%emt 0:00:20][%cal Be5f4,Bf4f3][%mdl 32]} ({And not} 27... Rxf4 28. Nfe3 $11) 28. Qxf3 {[%emt 0:00:39]} Ng5 {[%emt 0:00:04]} 29. Qg2 {[%emt 0:00:32]} (29. Qh1 $142 Rh7 30. h4) 29... Rh7 {[%emt 0:00:08]} 30. Nd2 {[%emt 0:04:26]} f3 {[%emt 0:00:33] Weighted Error Value: White=0.49/Black=0.09 (flawless)} 0-1